[Event "Marmaris Icmeler-IM May 2022"]
[Site "Icmeler"]
[Date "2022.05.06"]
[Round "3.5"]
[White "Nazari, Arad"]
[Black "Darban, Morteza"]
[Result "1-0"]
[ECO "B11"]
[WhiteElo "2287"]
[BlackElo "2279"]
[Annotator "TA"]
[PlyCount "119"]
[EventDate "2022.05.05"]
[EventType "schev"]
[EventCountry "TUR"]
[SourceTitle "playchess.com"]
[Source "ChessBase"]
[SourceQuality "1"]
[TimeControl "5400+30"]

{[%evp 12,119,17,0,60,60,88,50,47,51,66,22,21,25,59,59,62,62,62,45,45,45,62,64,66,53,78,42,42,62,49,59,48,46,133,147,137,118,136,135,158,110,177,146,218,145,167,95,93,89,90,90,66,66,82,65,86,33,63,32,40,18,25,22,36,25,39,33,60,60,59,54,53,8,271,0,268,263,250,233,587,535,535,511,868,872,791,777,743,732,731,607,711,706,29979,29980,29980,29979,29977,29978,29978,29979,29980,29981,29981,29982,29982,29983,29983,29984]} 1. e4 c6 2. Nc3 d5 3. Nf3 Bg4 4. h3 Bxf3 5. Qxf3 e6 6. d4 Nf6 7. Bd3 Bb4 {B11: Caro-Kann: Two Knights Variation.} (7... dxe4 $11 8. Nxe4 Qxd4) 8. e5 $14 Nfd7 9. Qg4 g6 {White is slightly better.} 10. O-O c5 {[#]} 11. a3 $146 (11. Bg5 {with more complications.} Qb6 12. a3 Bxc3 13. bxc3 Nc6 14. Rab1) ({Predecessor:} 11. Bg5 Qb6 12. a3 Bxc3 13. bxc3 c4 14. Be2 Qa5 15. Qf3 h6 16. Bd2 Qa4 17. Rfb1 {1-0 (32) Veszpremi,A (2303)-Varasdy,I (2286) Hungary 2018}) 11... Bxc3 12. bxc3 c4 13. Be2 $1 (13. Bg5 Qa5 14. Be2 Qxc3 $15) 13... h5 14. Qg3 Nc6 15. Bg5 Qa5 16. a4 a6 17. f4 Qc7 18. Qe3 Rb8 19. g4 hxg4 20. hxg4 Nf8 21. f5 gxf5 22. gxf5 {Hoping for Bf6.} Rg8 ({Better is} 22... Ne7 $1 $14) 23. Kf2 $16 exf5 24. Bh5 $1 Ne6 25. Bf6 ({Don't blunder} 25. Rg1 $2 Rxg5 26. Rxg5 f4 $19) 25... Rf8 26. Ke2 {White is much more active. The black rooks are badly placed.} (26. Qh3 $142) 26... f4 (26... b5 $16) 27. Qh3 $18 Kd7 (27... Qc8 $16 {keeps fighting.} 28. Kd1 Ne7) 28. Rxf4 Rbe8 29. Bg7 {The board is on fire. This bishop pair is nice.} (29. Rf5 $18) 29... f5 $16 30. Bxe8+ Kxe8 31. Bh6 Nxf4+ 32. Bxf4 {Rg1 is the strong threat.} Qf7 33. Kd2 Qg6 34. Qf3 (34. Be3 $16 {Black must now prevent Rg1.} Qg4 35. Qh1) 34... Ne7 35. Rh1 Rg8 {[%cal Bf8g8,Bg8g2,Bg2c2][%mdl 32]} 36. Rh6 Qg2+ 37. Qxg2 Rxg2+ $11 {[%mdl 4096] Endgame KRB-KRN} 38. Ke3 Rxc2 39. e6 {White wants to mate with Rh8+.} Rxc3+ 40. Kf2 $1 Rc2+ 41. Kg3 {[%mdl 1024] White has compensation.} Kf8 $1 42. Be5 c3 $2 {[%mdl 8192] White stays focused until the end.} (42... Nc6 {gets mated.} 43. Bf6 Ne7 44. Rh8+ Ng8 45. e7+ Kf7 46. Rxg8 $1 {[%mdl 512]} Re2 47. Rf8+ Kg6 48. Be5) (42... Rb2 $11 {and Black stays safe.}) 43. Rh8+ $18 Ng8 {[#]} 44. Rh7 $1 Re2 45. Rxb7 {Strongly threatening Bd6+.} Ke8 $2 (45... Rxe5 {is tougher.} 46. dxe5 Ne7) 46. Rb8+ {[%mdl 64] Skewer} Ke7 47. Rxg8 {And now Rc8 would win. KRB-KR} c2 (47... Rc2 $142 48. Rg7+ Kxe6 49. Rg6+ Kf7 50. Rxa6 Rc1 51. Rf6+ Ke7) 48. Rc8 Kxe6 49. Kf3 Rd2 50. Ke3 Rg2 51. Kd3 Kf7 52. Rxc2 Rxc2 53. Kxc2 {KB-K3P. White mates.} Kg6 54. Kd3 Kg5 55. Ke3 Kg4 56. Bc7 Kg5 57. Kf3 Kg6 58. Kf4 Kf6 59. Be5+ Ke6 60. a5 {Weighted Error Value: White=0.13 (very precise) /Black=0.44} 1-0

[Event "Marmaris Icmeler-IM May 2022"]
[Site "Icmeler"]
[Date "2022.05.06"]
[Round "4.1"]
[White "Sevdimaliyev, Urfan"]
[Black "Hereklioglu, Sude"]
[Result "1-0"]
[ECO "A88"]
[WhiteElo "2331"]
[BlackElo "1918"]
[Annotator "TA"]
[PlyCount "63"]
[EventDate "2022.05.05"]
[EventType "schev"]
[EventCountry "TUR"]
[SourceTitle "playchess.com"]
[Source "ChessBase"]
[SourceQuality "1"]
[TimeControl "5400+30"]

{[%evp 16,62,37,30,23,47,71,59,72,60,65,46,77,72,139,119,227,216,229,139,139,85,69,77,82,50,39,42,100,100,150,80,71,20,73,67,77,77,81,75,81,73,75,76,154,79,249,252,29999]} 1. c4 {[%emt 0:03:00]} g6 {[%emt 0:03:00]} 2. Nc3 {[%emt 0:00:30]} Bg7 {[%emt 0:00:30]} 3. g3 {[%emt 0:00:30]} f5 {[%emt 0:01:30]} 4. Bg2 {[%emt 0:02:30]} Nf6 {[%emt 0:04:30]} 5. Nf3 {[%emt 0:01:30]} d6 {[%emt 0:01:30]} 6. d4 {[%emt 0:01:30]} c6 {[%emt 0:03:30]} 7. O-O {[%emt 0:00:30]} O-O {[%emt 0:00:30]} 8. Re1 {[%emt 0:02:30]} Ne4 {[%emt 0:02:30]} 9. Qc2 {[%emt 0:08:30]} Nxc3 {[%emt 0:04:30] A88: Dutch Defence: Leningrad System: 5 Nf3 0-0 6 0-0 d6 7 Nc3 c6.} 10. bxc3 $1 {[%emt 0:02:30] The main line 10.bxc3 scores better than 10.Qxc3.} Nd7 {[%emt 0:01:30]} 11. e4 {[%emt 0:06:30]} fxe4 {[%emt 0:01:30] White is slightly better.} 12. Qxe4 {[%emt 0:00:30]} e5 {[%emt 0:01:30]} 13. Bg5 {[%emt 0:10:30][%cal Bc1g5,Bg5e7,Be7d6][%mdl 32]} Qe8 {[%emt 0:05:30]} 14. Qh4 {[%emt 0:02:30] [#] White is much more active.} Qf7 $146 {[%emt 0:05:30]} (14... Rf5 $142) ({Predecessor:} 14... Rf5 15. g4 Rf7 16. dxe5 dxe5 17. Rad1 Qf8 18. Nd2 Nc5 19. Ne4 Be6 20. Re3 Nxe4 21. Bxe4 Bf6 22. Rh3 Bxg5 23. Qxg5 Qe7 24. Qh6 Bxg4 25. Bxg6 Rg7 {0-1 (25) Kartsev,S (2232)-Meijers,V (2465) Recklinghausen 2006}) 15. Be7 $16 {[%emt 0:04:30]} Re8 {[%emt 0:01:30]} (15... Bf6 $16 16. Bxf6 Qxf6) 16. Bxd6 $18 {[%emt 0:02:30] Hoping for Ng5.} Qxc4 {[%emt 0:00:30]} 17. dxe5 {[%emt 0:04:30]} ({Don't play} 17. Ng5 $6 h6) (17. Bf1 Qd5) 17... Qxh4 {[%emt 0:04:30]} 18. gxh4 {[%emt 0:00:00]} (18. Nxh4 $142 Nb6 19. f4) 18... Nb6 $16 {[%emt 0:00:30]} 19. Bf1 {[%emt 0:10:00] Prevents Nc4.} Be6 {[%emt 0:02:30]} 20. Nd2 {[%emt 0:10:30][%cal Bf3d2,Bd2e4,Be4c5,Bc5b7,Bb7a5][%mdl 32]} (20. Ng5 {with more complications.} Bf5 21. a4 Bf8 22. a5) 20... Bf5 {[%emt 0:07:30]} 21. Ne4 {[%emt 0:03:30]} Kh8 {[%emt 0:02:30]} ({Not} 21... Bxe5 22. Bxe5 Rxe5 23. Nf6+ Kf7 24. Rxe5 $16) (21... Bxe4 $14 22. Rxe4 Rad8) 22. Nc5 {[%emt 0:04:01]} Nd5 {[%emt 0:06:30]} (22... Bh6 $142) 23. c4 {[%emt 0:02:45]} (23. Nxb7 $142 {Threatens to win with c4.} Nxc3 24. Rac1) 23... Nb4 {[%emt 0:00:30]} 24. Rad1 {[%emt 0:04:00]} ({White should play} 24. Nxb7 $16 Nc2 25. Rad1) 24... Nc2 {[%emt 0:03:30]} (24... b6 $11 25. Ne4 Nc2) 25. Nxb7 {[%emt 0:02:07] And now Re2 would win.} ({But not} 25. Re2 Bg4 26. f4 Bxe2 27. Bxe2 Bh6 $15) 25... Nxe1 {[%emt 0:01:30]} 26. Rxe1 {[%emt 0:00:03]} Bf6 {[%emt 0:11:30]} 27. Bg2 $36 {[%emt 0:02:25][%mdl 2048] White has strong initiative.} Rac8 {[%emt 0:01:30]} 28. Na5 {[%emt 0:03:58]} Bd7 {[%emt 0:02:30]} 29. Re4 {[%emt 0:01:01]} Bf5 {[%emt 0:03:13] [#]} ({Black should try} 29... Bd8 30. Nb3 Bc7) 30. exf6 {[%emt 0:03:13]} (30. Re3 $142 $1 Bxh4 31. Bxc6) 30... Bxe4 $2 {[%emt 0:01:31]} (30... Rxe4 $16 {was necessary.} 31. Bxe4 Bxe4) 31. f7 $18 {[%emt 0:00:16]} Red8 {[%emt 0:00:21]} (31... Re6 $18) 32. Be5# {[%emt 0:00:07] Weighted Error Value: White=0.18 (very precise) /Black=0.54} 1-0

[Event "Marmaris Icmeler-IM May 2022"]
[Site "Icmeler"]
[Date "2022.05.06"]
[Round "4.2"]
[White "Toufighi, Homayoon"]
[Black "Ince, Taylan Ruzgar"]
[Result "1-0"]
[ECO "C07"]
[WhiteElo "2439"]
[BlackElo "2018"]
[Annotator "TA"]
[PlyCount "47"]
[EventDate "2022.05.05"]
[EventType "schev"]
[EventCountry "TUR"]
[SourceTitle "playchess.com"]
[Source "ChessBase"]
[SourceQuality "1"]
[TimeControl "5400+30"]

{[%evp 12,47,0,0,0,0,0,0,29,-20,0,-24,0,0,0,0,7,24,79,11,17,15,38,18,85,83,85,73,87,52,525,526,518,525,958,951,1507,1479]} 1. e4 {[%emt 0:07:00]} e6 {[%emt 0:01:00]} 2. d4 {[%emt 0:00:00]} d5 {[%emt 0:00:00]} 3. Nd2 {[%emt 0:00:00]} c5 {[%emt 0:00:00]} 4. exd5 {[%emt 0:00:30]} Qxd5 {[%emt 0:00:30]} 5. dxc5 {[%emt 0:00:30]} Bxc5 {[%emt 0:00:30]} 6. Ngf3 {[%emt 0:00:00]} Nf6 {[%emt 0:00:00]} 7. Bc4 {[%emt 0:00:00]} Qc6 {[%emt 0:00:00] C07: French Tarrasch: 3...c5, 4 Ngf3 and 4 exd5 Qxd5.} 8. O-O {[%emt 0:00:30]} O-O {[%emt 0:00:30] 8...Nbd7 is not played anymore.} 9. Qe2 {[%emt 0:00:00]} a6 {[%emt 0:17:30] The position is equal.} 10. Nb3 {[%emt 0:02:00]} (10. Bd3 $142) 10... Bd6 $11 {[%emt 0:06:30][%cal Oe6e5]} 11. Nbd4 {[%emt 0:00:30]} (11. Rd1 $5 {[%cal Rc1g5]}) 11... Qc7 {[%emt 0:01:30] Hoping for ...e5.} 12. Bg5 {[%emt 0:00:30]} e5 {[%emt 0:17:30]} 13. Bxf6 {[%emt 0:03:30] [#]} gxf6 $146 {[%emt 0:00:30]} ({Predecessor:} 13... exd4 14. Bxd4 Bg4 15. Bd3 Nc6 16. Qe4 f5 17. Qd5+ Kh8 18. Ng5 Bxh2+ 19. Kh1 Rad8 {0-1 (31) Cruz,J (2024)-Andrade,J (2199) Porto 2015}) 14. Nb3 {[%emt 0:00:30]} Qe7 {[%emt 0:00:30]} (14... Nc6 $11) 15. Rfe1 {[%emt 0:02:30]} (15. Qe3 $16) 15... Nc6 {[%emt 0:00:30]} 16. Rad1 $36 {[%emt 0:01:30][%mdl 2048] White has good play.} Bc7 {[%emt 0:05:30]} 17. Nfd4 {[%emt 0:06:30]} f5 {[%emt 0:07:30]} (17... Nxd4 $11 18. Nxd4 f5) 18. Nxc6 $16 {[%emt 0:04:30]} bxc6 {[%emt 0:00:30] [#]} 19. Nd4 $1 {[%emt 0:01:30][%cal Bb3d4,Bd4f3,Bf3g5][%mdl 32] White is more active.} Bd7 {[%emt 0:02:30]} 20. Nf3 {[%emt 0:02:30][%cal Rf3e5]} Rfe8 $2 {[%emt 0:03:30][%mdl 8192] [#] This move loses the game for Black.} (20... e4 $14) 21. Rxd7 $1 $18 {[%emt 0:07:30][%mdl 512] White is clearly winning.} Qxd7 {[%emt 0:00:00]} 22. Ng5 {[%emt 0:00:30]} Kg7 {[%emt 0:04:00]} 23. Rd1 {[%emt 0:01:30] Prevents Qd6.} Qe7 {[%emt 0:03:30]} 24. Qh5 {[%emt 0:00:30] Weighted Error Value: White=0.13 (very precise) /Black=0.68} 1-0

[Event "Marmaris Icmeler-IM May 2022"]
[Site "Icmeler"]
[Date "2022.05.06"]
[Round "4.3"]
[White "Huseyinoglu, Alihan"]
[Black "Taspinar, Yanki"]
[Result "1/2-1/2"]
[ECO "D45"]
[WhiteElo "2278"]
[BlackElo "2176"]
[Annotator "TA"]
[PlyCount "68"]
[EventDate "2022.05.05"]
[EventType "schev"]
[EventCountry "TUR"]
[SourceTitle "playchess.com"]
[Source "ChessBase"]
[SourceQuality "1"]
[TimeControl "5400+30"]

{[%evp 23,68,0,0,-1,4,6,19,13,46,53,29,0,22,14,12,11,20,27,19,22,19,24,31,11,21,27,18,0,0,0,0,0,0,0,0,0,0,0,0,0,0,0,0,0,0,0,0]} 1. d4 {[%emt 0:01:00]} d5 {[%emt 0:04:00]} 2. c4 {[%emt 0:00:00]} e6 {[%emt 0:00:00]} 3. Nc3 {[%emt 0:00:00]} c6 {[%emt 0:00:00]} 4. e3 {[%emt 0:00:30]} Nf6 {[%emt 0:00:00]} 5. Nf3 {[%emt 0:00:00]} Nbd7 {[%emt 0:00:00]} 6. Qc2 {[%emt 0:00:00]} Bd6 {[%emt 0:00:30]} 7. b3 {[%emt 0:00:30]} O-O {[%emt 0:00:30]} 8. Be2 {[%emt 0:00:30]} b6 {[%emt 0:00:00]} 9. Bb2 {[%emt 0:00:00]} Bb7 {[%emt 0:00:00]} 10. O-O {[%emt 0:00:00]} Qe7 {[%emt 0:00:00]} 11. Rad1 {[%emt 0:00:30]} Rad8 {[%emt 0:00:00]} 12. Rfe1 {[%emt 0:00:00]} Rfe8 {[%emt 0:00:30]} 13. Bf1 {[%emt 0:00:00] D45: Semi-Slav: 5 e3.} c5 {[%emt 0:03:30]} 14. cxd5 {[%emt 0:00:30]} exd5 {[%emt 0:00:30]} 15. dxc5 {[%emt 0:00:30]} Nxc5 {[%emt 0:05:30]} 16. Nb5 {[%emt 0:10:30]} Bb8 {[%emt 0:00:30] [#]} 17. h3 $146 {[%emt 0:00:30]} ({Predecessor:} 17. Rc1 Rc8 18. Qf5 a6 19. Bxf6 Qxf6 20. Qxf6 gxf6 21. Nbd4 Ne4 22. Nf5 Kf8 23. N3d4 {½-½ (90) Kovacs,G (2467)-Schachinger,M (2382) Oberwart 2012}) 17... Nce4 {[%emt 0:03:30]} 18. Qb1 {[%emt 0:03:30]} Rc8 {[%emt 0:01:30]} 19. Rc1 {[%emt 0:04:30]} Rxc1 {[%emt 0:08:30]} 20. Qxc1 {[%emt 0:00:30]} Rc8 {[%emt 0:02:30]} 21. Qb1 {[%emt 0:04:30]} a6 {[%emt 0:08:30]} 22. Nbd4 {[%emt 0:01:30]} Qd6 {[%emt 0:01:30]} 23. Qa1 {[%emt 0:05:30]} Ng5 {[%emt 0:06:30]} 24. Bd3 {[%emt 0:03:30]} Nfe4 {[%emt 0:22:30]} 25. Kf1 {[%emt 0:14:30] The position is equal.} Nxf3 {[%emt 0:04:30]} 26. Nxf3 {[%emt 0:01:30]} d4 {[%emt 0:06:30]} 27. Bxd4 {[%emt 0:16:30]} Nxf2 $1 {[%emt 0:02:30][%mdl 64] [#] Decoy} 28. Kxf2 {[%emt 0:02:30]} Qg3+ {[%emt 0:00:30]} 29. Kf1 {[%emt 0:00:30] And now Qd1 would win.} Bxf3 {[%emt 0:00:00]} 30. gxf3 {[%emt 0:00:30]} Qxf3+ {[%emt 0:02:46]} 31. Kg1 {[%emt 0:00:30] [#] Qb2 is the strong threat.} Qg3+ {[%emt 0:05:16]} 32. Kf1 {[%emt 0:00:30] Strongly threatening Qb2.} Qf3+ {[%emt 0:10:29]} 33. Kg1 {[%emt 0:00:00] Hoping for Qb2.} Qg3+ {[%emt 0:01:14]} 34. Kf1 {[%emt 0:00:00] Black must now prevent Qb2.} Qf3+ {[%emt 0:00:02] Weighted Error Value: White=0.06 (flawless) /Black=0.05 (flawless)} 1/2-1/2

[Event "Marmaris Icmeler-IM May 2022"]
[Site "Icmeler"]
[Date "2022.05.06"]
[Round "4.4"]
[White "Darban, Morteza"]
[Black "Kilic, Eray"]
[Result "1/2-1/2"]
[ECO "B50"]
[WhiteElo "2279"]
[BlackElo "2192"]
[Annotator "TA"]
[PlyCount "60"]
[EventDate "2022.05.05"]
[EventType "schev"]
[EventCountry "TUR"]
[SourceTitle "playchess.com"]
[Source "ChessBase"]
[SourceQuality "1"]
[TimeControl "5400+30"]

{[%evp 20,60,18,7,29,5,31,41,47,0,41,20,4,-5,-5,-7,-10,-10,-10,-10,-10,-9,-8,-16,-4,-4,-2,-4,-4,-4,0,0,12,12,12,14,26,26,26,26,40,33,53]} 1. e4 {[%emt 0:11:00]} c5 {[%emt 0:01:00]} 2. Nf3 {[%emt 0:00:00]} d6 {[%emt 0:00:00]} 3. c3 {[%emt 0:00:00]} Nf6 {[%emt 0:00:00]} 4. h3 {[%emt 0:00:00]} g6 {[%emt 0:01:30]} 5. Bd3 {[%emt 0:00:00]} Bg7 {[%emt 0:00:00]} 6. Bc2 {[%emt 0:00:30]} O-O {[%emt 0:01:00]} 7. d4 {[%emt 0:00:00]} Nc6 {[%emt 0:06:30]} 8. O-O {[%emt 0:06:00]} cxd4 {[%emt 0:00:30]} 9. cxd4 {[%emt 0:00:30]} d5 {[%emt 0:02:30]} 10. e5 {[%emt 0:00:30]} Ne4 {[%emt 0:00:30]} 11. Nc3 {[%emt 0:10:30][%cal Bb1c3,Bc3e2,Be2f4][%mdl 32]} Bf5 {[%emt 0:00:30] B50: Sicilian: 2...d6, Miscellaneous.} 12. Ne2 {[%emt 0:01:30]} Rc8 {[%emt 0:08:30]} 13. Nf4 {[%emt 0:06:30] [#]} h5 $146 {[%emt 0:22:30]} ({Predecessor:} 13... Rc7 14. Re1 Na5 15. Bd3 h5 16. Nh4 e6 17. Nxf5 exf5 18. Be3 Nc4 19. Qb3 h4 {1-0 (30) Pirisi,G (2350)-Polajzer,D (2340) Wuerzburg 1988}) 14. a3 {[%emt 0:07:30]} (14. Be3 $14) 14... Na5 {[%emt 0:02:30][%cal Oc8c2]} 15. Bd3 {[%emt 0:11:30]} e6 {[%emt 0:03:30]} 16. Ne2 {[%emt 0:00:30]} Qb6 {[%emt 0:02:30]} 17. Rb1 {[%emt 0:06:30]} Nb3 {[%emt 0:02:30]} 18. Be3 {[%emt 0:00:30] [#]} Ned2 $1 {[%emt 0:04:30]} 19. Nxd2 {[%emt 0:04:30]} Bxd3 {[%emt 0:00:30]} 20. Qxb3 {[%emt 0:00:00]} Bxe2 {[%emt 0:00:30]} 21. Rfc1 {[%emt 0:03:00]} Qxb3 {[%emt 0:05:30]} 22. Nxb3 {[%emt 0:00:00]} b6 {[%emt 0:00:30]} 23. Rxc8 {[%emt 0:00:00]} Rxc8 {[%emt 0:00:00]} 24. Rc1 {[%emt 0:00:30] Against Rc2} Rc4 {[%emt 0:01:00]} 25. Bg5 {[%emt 0:07:30]} Bf8 {[%emt 0:01:30]} 26. f3 {[%emt 0:01:30]} f6 {[%emt 0:16:28]} 27. exf6 {[%emt 0:03:30]} Kf7 {[%emt 0:00:46]} 28. Kf2 {[%emt 0:00:57]} Rxc1 {[%emt 0:00:56]} 29. Nxc1 {[%emt 0:00:08]} Bc4 {[%emt 0:00:10]} 30. Ke3 {[%emt 0:07:51]} Bd6 {[%emt 0:00:50] Weighted Error Value: White=0.06 (flawless) /Black=0.07 (flawless)} 1/2-1/2

[Event "Marmaris Icmeler-IM May 2022"]
[Site "Icmeler"]
[Date "2022.05.06"]
[Round "4.5"]
[White "Odeev, Handszar"]
[Black "Nazari, Arad"]
[Result "1/2-1/2"]
[ECO "B50"]
[WhiteElo "2305"]
[BlackElo "2287"]
[Annotator "TA"]
[PlyCount "136"]
[EventDate "2022.05.05"]
[EventType "schev"]
[EventCountry "TUR"]
[SourceTitle "playchess.com"]
[Source "ChessBase"]
[SourceQuality "1"]
[TimeControl "5400+30"]

{[%evp 9,136,22,15,14,47,39,41,5,20,21,32,15,14,15,12,0,0,0,0,0,0,0,0,0,0,0,0,-120,-114,-123,-129,-122,-129,-194,-191,-278,-257,-250,-209,-214,-214,-211,-183,-188,-147,-141,-148,-148,-151,-136,-153,-147,-143,-135,-141,-140,-60,-63,-63,-64,-64,-62,-56,-63,-60,-57,0,-12,-18,-72,0,-5,-6,-6,-6,-7,0,0,0,-8,-4,-10,0,0,0,0,0,0,0,0,0,0,-4,-15,0,0,0,0,0,0,0,0,0,0,8,8,8,8,26,23,27,27,29,28,29,29,41,0,8,0,31,34,39,39,48,46,48,28,46]} 1. e4 {[%emt 0:06:00]} c5 {[%emt 0:01:00]} 2. Nf3 {[%emt 0:00:30]} d6 {[%emt 0:00:00]} 3. Nc3 {[%emt 0:06:30]} a6 {[%emt 0:01:00]} 4. a3 {[%emt 0:03:30]} Nc6 {[%emt 0:00:30]} 5. d4 {[%emt 0:03:30]} cxd4 {[%emt 0:00:00]} 6. Nxd4 {[%emt 0:00:30] B50: Sicilian: 2...d6, Miscellaneous.} g6 {[%emt 0:00:00]} 7. Be3 {[%emt 0:01:30]} Bg7 {[%emt 0:00:30]} 8. Be2 {[%emt 0:06:30] White is slightly better.} Nf6 {[%emt 0:00:00]} 9. Qd2 {[%emt 0:04:30]} O-O {[%emt 0:00:00]} 10. O-O {[%emt 0:08:30]} Bd7 {[%emt 0:00:30]} 11. Rad1 {[%emt 0:00:30]} Rc8 {[%emt 0:01:30]} 12. Nxc6 {[%emt 0:05:30]} Bxc6 {[%emt 0:00:30]} 13. f3 {[%emt 0:00:30]} Qc7 {[%emt 0:01:30]} 14. Rfe1 {[%emt 0:15:30]} Rfd8 {[%emt 0:02:30] [#]} 15. Bf1 $146 {[%emt 0:00:30]} ({Predecessor:} 15. Bd3 Nd7 16. Qf2 b5 17. Rd2 Bb7 18. Nd1 Re8 19. c3 Nc5 20. Bc2 a5 21. Bd4 {0-1 (27) Martynov,S (2087)-Sozin,S Abaza 2007}) 15... b5 {[%emt 0:04:30]} 16. Qf2 {[%emt 0:00:30]} Qb7 {[%emt 0:00:30]} 17. Bb6 {[%emt 0:04:30]} Re8 {[%emt 0:00:30]} 18. Na2 {[%emt 0:01:30] [#]} (18. Be3 $11 {keeps the balance.}) 18... Bxe4 $1 $17 {[%emt 0:08:30][%mdl 512]} 19. Rxe4 {[%emt 0:00:30]} (19. fxe4 $2 Ng4 20. c3 Nxf2 $19) (19. Nb4 Nd5) 19... Nxe4 {[%emt 0:00:00][%mdl 64] Discovered Attack} 20. fxe4 {[%emt 0:00:30]} Bxb2 {[%emt 0:00:00]} 21. Bd4 {[%emt 0:12:59]} (21. Nb4 $17) 21... Bxa3 $19 {[%emt 0:04:30]} ({Not} 21... Bxd4 22. Qxd4 Rxc2 23. Nb4 $17) 22. Nc3 {[%emt 0:00:28]} (22. Qf3 $142 Bc5 23. Bxc5 Rxc5 24. Bd3) 22... e5 {[%emt 0:05:30] ...Rxc3 is the strong threat.} 23. Nb1 {[%emt 0:03:15]} exd4 {[%emt 0:01:30]} 24. Nxa3 {[%emt 0:00:06]} Qxe4 {[%emt 0:00:30] Hoping for ...Re6.} 25. Bd3 {[%emt 0:02:20]} Qe3 {[%emt 0:00:30] Strongly threatening ...Re6.} 26. Nb1 {[%emt 0:00:09][%cal Ba3b1,Bb1d2,Bd2c4][%mdl 32]} b4 {[%emt 0:09:30]} 27. Nd2 {[%emt 0:01:48]} a5 {[%emt 0:01:30]} 28. Nc4 {[%emt 0:00:53]} Qxf2+ {[%emt 0:00:00]} 29. Kxf2 {[%emt 0:00:02]} Rc5 {[%emt 0:00:00]} 30. Ra1 {[%emt 0:01:28]} b3 {[%emt 0:05:30]} 31. cxb3 {[%emt 0:00:23]} d5 {[%emt 0:00:30]} 32. Nxa5 {[%emt 0:07:14] [#]} Re3 {[%emt 0:00:00]} (32... Rc3 $1 $17 {[%cal Rc3d3]} 33. Rd1 Rb8) 33. b4 $15 {[%emt 0:03:08]} Rc3 {[%emt 0:00:00]} 34. Bf1 {[%emt 0:01:00]} Rc2+ {[%emt 0:00:00]} 35. Kg1 {[%emt 0:00:02]} d3 {[%emt 0:03:00][%cal Bd4d3,Bd3d2][%mdl 32]} 36. Rd1 {[%emt 0:00:01]} d2 {[%emt 0:00:30] And now ...Re1 would win.} 37. Kf2 {[%emt 0:00:05] Against Re1} Re6 {[%emt 0:02:30]} ({Better is} 37... Re4 $1 $15 38. Nb3 Rxb4 39. Rxd2 Rxd2+ 40. Nxd2 f5) 38. Bd3 {[%emt 0:00:47]} Rb2 {[%emt 0:00:30]} 39. b5 {[%emt 0:00:35]} (39. Be2 $11) 39... d4 {[%emt 0:01:30]} (39... Re1 $1 $17 {[%cal Re1d1]} 40. Be2 {[#]} Rxb5 $3 {[%mdl 512]}) 40. Nc4 {[%emt 0:01:44]} Rxb5 {[%emt 0:00:00]} 41. Rxd2 {[%emt 0:00:22]} Rf6+ {[%emt 0:00:00]} 42. Kg1 {[%emt 0:00:39]} Rb4 {[%emt 0:01:30]} 43. h3 {[%emt 0:00:30]} Re6 {[%emt 0:00:30]} 44. Kf2 {[%emt 0:00:29]} Kg7 {[%emt 0:00:30]} 45. Rd1 {[%emt 0:00:19]} h5 {[%emt 0:00:30]} 46. Nd2 {[%emt 0:00:31]} g5 {[%emt 0:00:30]} 47. Nf3 {[%emt 0:00:35]} g4 {[%emt 0:01:30]} 48. hxg4 {[%emt 0:00:06]} hxg4 {[%emt 0:00:00]} 49. Ng1 {[%emt 0:00:49]} Kf6 {[%emt 0:01:00]} 50. Ne2 {[%emt 0:00:17]} Kg5 {[%emt 0:00:30]} 51. Rc1 {[%emt 0:00:49]} Re3 {[%emt 0:01:30]} 52. Rc5+ {[%emt 0:00:29]} Kh6 {[%emt 0:00:30]} 53. Rc6+ {[%emt 0:00:28]} Kg7 {[%emt 0:00:00]} 54. Bf5 {[%emt 0:00:39]} Rb2 {[%emt 0:07:00]} 55. Rc2 {[%emt 0:00:24]} Rb4 {[%emt 0:03:30]} 56. Nxd4 {[%emt 0:00:34]} Ra3 {[%emt 0:02:30]} (56... Re5 $5 57. Rd2 Rd5 $11) 57. Rd2 {[%emt 0:00:31]} g3+ {[%emt 0:00:30]} 58. Ke2 {[%emt 0:00:19] aiming for Nc2.} Rb8 {[%emt 0:01:30]} 59. Bd3 {[%emt 0:00:33]} Re8+ {[%emt 0:00:30]} 60. Kf3 {[%emt 0:00:26]} Rd8 {[%emt 0:00:00]} 61. Ke3 {[%emt 0:00:26]} Kf6 {[%emt 0:00:00]} 62. Ne2 {[%emt 0:00:28]} Re8+ {[%emt 0:00:30]} 63. Kf4 {[%emt 0:00:42]} Rd8 {[%emt 0:00:30]} 64. Ke3 {[%emt 0:00:24]} Kg5 {[%emt 0:00:30]} 65. Nxg3 {[%emt 0:00:21]} Kg4 {[%emt 0:00:30]} 66. Ne2 {[%emt 0:00:44]} f5 {[%emt 0:00:30][%cal Of5f4]} 67. g3 {[%emt 0:00:16] Against f4+} Rd6 {[%emt 0:01:30]} 68. Nf4 {[%emt 0:00:30]} Rd7 {[%emt 0:01:30] Black had all chances to win.  Weighted Error Value: White=0.11 (very precise) /Black=0.08 (flawless)} 1/2-1/2